bitfinex-derivatives/quotes_BTCF0:USTF0_20251009
["timestamp","ask_amount","ask_price","bid_price","bid_amount"]
[1760037756213,0.69182215,121030.0,121020.0,1.21374145]
[1760037756518,0.60924765,121030.0,121020.0,0.9660238]
[1760037756914,0.69182215,121030.0,121020.0,0.9660238]
[1760037757113,0.60924765,121030.0,121020.0,0.9660238]
[1760037757621,0.28,121030.0,121020.0,1.11033895]
[1760037757813,0.52771765,121030.0,121020.0,1.11033895]
[1760037758223,0.28,121030.0,121020.0,1.21355676]
[1760037758518,0.52771765,121030.0,121020.0,1.21355676]
[1760037758920,0.28,121030.0,121020.0,1.21455676]
[1760037759420,0.52771765,121030.0,121020.0,2.9265413]
[1760037759616,0.52771765,121030.0,121020.0,2.9255413]
[1760037759816,0.55776765,121030.0,121020.0,2.9255413]
[1760037760116,0.31005,121030.0,121020.0,2.9255413]
[1760037760419,0.55776765,121030.0,121020.0,2.9255413]
[1760037761017,0.55776765,121030.0,121020.0,3.02875911]
[1760037765635,0.60825765,121030.0,121020.0,2.27923911]
[1760037765832,0.60825765,121030.0,121020.0,3.02847911]
[1760037766935,0.60825765,121030.0,121020.0,3.02843911]
[1760037767335,0.60825765,121030.0,121020.0,0.21647911]
[1760037767637,0.60825765,121030.0,121020.0,3.02843911]
[1760037768437,0.60825765,121030.0,121020.0,2.9251813]
[1760037768937,0.36054,121030.0,121020.0,2.9251813]
[1760037769130,0.60825765,121030.0,121020.0,3.02823975]
[1760037769325,0.60825765,121030.0,121020.0,3.02819975]
[1760037770036,0.60825765,121030.0,121020.0,3.2759174]
[1760037770231,0.60825765,121030.0,121020.0,3.17285895]
[1760037770432,0.60825765,121030.0,121020.0,3.17381895]
[1760037770732,0.60825765,121030.0,121020.0,2.9261013]
[1760037771135,0.60825765,121030.0,121020.0,2.1769413]
[1760037771341,0.60825765,121030.0,121020.0,2.9251013]
[1760037771631,0.60825765,121030.0,121020.0,2.52672732]
[1760037771831,0.60825765,121030.0,121020.0,3.27588732]
[1760037772033,0.28,121030.0,121020.0,2.77444497]
[1760037772238,0.08614,121050.0,121040.0,0.1110377]
[1760037772433,0.51271765,121050.0,121040.0,1.10791535]
[1760037772635,0.51271765,121050.0,121040.0,0.624263]
[1760037772636,0.265,121050.0,121040.0,0.624263]
[1760037772828,0.015,121050.0,121040.0,1.373383]
[1760037773035,0.26271765,121050.0,121040.0,1.12566535]
[1760037773737,0.26271765,121050.0,121040.0,1.27279086]
[1760037774543,0.015,121050.0,121040.0,1.52050851]
[1760037775139,0.015,121050.0,121040.0,1.373383]
[1760037775441,0.015,121050.0,121040.0,1.20811078]
[1760037776543,0.015,121050.0,121040.0,1.27261945]
[1760037778243,0.015,121050.0,121040.0,1.37557008]
[1760037778542,0.015,121050.0,121040.0,0.62645008]
[1760037778840,0.005,121050.0,121040.0,1.37549008]
[1760037779042,0.005,121050.0,121040.0,3.33497945]
[1760037779235,0.005,121050.0,121040.0,0.52349945]
[1760037779639,0.005,121050.0,121040.0,2.58593945]
[1760037779840,0.005,121050.0,121040.0,3.33497945]
[1760037780744,0.005,121050.0,121040.0,3.43794197]
[1760037781039,0.005,121050.0,121040.0,0.62646197]
[1760037781237,0.005,121050.0,121040.0,3.43786197]
[1760037781437,0.41549308,121050.0,121040.0,2.98694637]
[1760037781836,0.41549308,121050.0,121040.0,0.17554637]
[1760037782148,0.41549308,121050.0,121040.0,2.98694637]
[1760037782646,0.08533,121050.0,121040.0,2.98694637]
[1760037782847,0.41549308,121050.0,121040.0,2.98694637]
[1760037784047,0.41549308,121050.0,121040.0,2.98686637]
[1760037784748,0.41549308,121050.0,121040.0,0.17554637]
[1760037784948,0.41549308,121050.0,121040.0,2.98682637]
[1760037786344,0.41549308,121050.0,121040.0,3.08978889]
[1760037787145,0.41549308,121050.0,121040.0,2.98682637]
[1760037787344,0.41549308,121050.0,121040.0,3.08989865]
[1760037787741,1.18805398,121050.0,121040.0,0.19605095]
[1760037787945,1.18805398,121050.0,121040.0,1.02753865]
[1760037788146,1.18805398,121050.0,121040.0,0.92446637]
[1760037789451,0.77533,121050.0,121040.0,0.43794637]
[1760037789750,0.085,121050.0,121040.0,1.62009]
[1760037790052,0.006,121050.0,121040.0,1.51702945]
[1760037790551,0.006,121050.0,121040.0,1.66415496]
[1760037791451,0.006,121050.0,121040.0,1.51702945]
[1760037793455,0.006,121050.0,121040.0,0.76810945]
[1760037793753,0.006,121050.0,121040.0,1.51698945]
[1760037794756,0.006,121050.0,121040.0,1.62006705]
[1760037796055,0.006,121050.0,121040.0,1.51698945]
[1760037796455,0.006,121050.0,121040.0,0.76810945]
[1760037796654,0.006,121050.0,121040.0,1.51698945]
[1760037796857,0.006,121050.0,121040.0,1.62006705]
[1760037797263,0.006,121050.0,121040.0,1.51698945]
[1760037797563,0.006,121050.0,121040.0,1.62006705]
[1760037797956,0.006,121050.0,121040.0,1.51698945]
[1760037798363,0.006,121050.0,121040.0,1.62006705]
[1760037802261,0.006,121050.0,121040.0,0.87118705]
[1760037802461,0.006,121050.0,121040.0,0.76810945]
[1760037802763,0.006,121050.0,121040.0,1.51694945]
[1760037803268,0.006,121050.0,121040.0,0.76810945]
[1760037803462,0.006,121050.0,121040.0,3.57914945]
[1760037804866,0.006,121050.0,121040.0,3.57910945]
[1760037805265,0.006,121050.0,121040.0,2.50014637]
[1760037805464,0.006,121050.0,121040.0,3.57910945]
[1760037807668,0.006,121050.0,121040.0,0.76810945]
[1760037807871,0.006,121050.0,121040.0,3.57910945]
[1760037808066,0.006,121050.0,121040.0,2.83030945]
[1760037808270,0.006,121050.0,121040.0,3.57910945]
[1760037814472,0.006,121050.0,121040.0,2.83030945]
[1760037814776,0.00134149,121050.0,121040.0,3.97902945]
[1760037815271,0.00134149,121050.0,121040.0,3.23030945]
[1760037815470,0.00134149,121050.0,121040.0,4.17060765]
[1760037816673,0.00134149,121050.0,121040.0,3.97902945]
[1760037817572,0.00134149,121050.0,121040.0,4.12635265]
[1760037819278,0.00134149,121050.0,121040.0,3.79610957]
[1760037819577,0.00134149,121050.0,121040.0,4.12619265]
[1760037819773,0.00134149,121050.0,121040.0,3.56035253]
[1760037819973,0.005,121070.0,121060.0,0.115624]
[1760037820176,0.005,121070.0,121060.0,1.19446708]
[1760037820569,0.00110845,121070.0,121060.0,0.44578708]
[1760037820771,0.00110845,121070.0,121060.0,1.3417538]
[1760037820971,0.00310845,121070.0,121060.0,1.3417538]
[1760037821576,0.00310845,121070.0,121060.0,0.44578708]
[1760037821881,0.00310845,121070.0,121060.0,3.25654708]
[1760037822776,0.00310845,121070.0,121060.0,3.25646708]
[1760037822978,0.00310845,121070.0,121060.0,2.926304]
[1760037823177,0.00310845,121070.0,121060.0,3.25646708]
[1760037823984,0.00310845,121070.0,121060.0,0.44578708]
[1760037824181,0.00310845,121070.0,121060.0,3.25642708]
[1760037824382,0.00310845,121070.0,121060.0,2.50778708]
[1760037824578,0.00310845,121070.0,121060.0,0.44578708]
[1760037824780,0.00310845,121070.0,121060.0,3.25634708]
[1760037825487,0.40963153,121070.0,121060.0,2.913464]
[1760037825781,0.40963153,121070.0,121060.0,0.102904]
[1760037825983,0.40963153,121070.0,121060.0,2.913464]
[1760037826174,0.03017845,121070.0,121060.0,2.913464]
[1760037826378,0.00310845,121070.0,121060.0,2.913464]
[1760037826980,0.00310845,121070.0,121060.0,3.24362708]
[1760037828081,0.00310845,121070.0,121060.0,2.50338393]
[1760037828286,0.00310845,121070.0,121060.0,3.25194393]
[1760037830389,0.00310845,121070.0,121060.0,3.35494251]
[1760037830698,0.00310845,121070.0,121060.0,3.25194393]
[1760037832787,0.00310845,121070.0,121060.0,0.44142393]
[1760037832986,0.00310845,121070.0,121060.0,2.92162085]
[1760037833188,0.00310845,121070.0,121060.0,3.25178393]
[1760037833585,0.00310845,121070.0,121060.0,3.35476647]
[1760037835491,0.00310845,121070.0,121060.0,3.51968879]
[1760037838896,0.07537845,121070.0,121060.0,2.52358609]
[1760037839090,0.25065115,121070.0,121060.0,2.52358609]
[1760037839285,0.25065115,121070.0,121060.0,3.27202609]
[1760037839687,0.25065115,121070.0,121060.0,3.16904355]
[1760037840096,0.25065115,121070.0,121060.0,3.41658625]
[1760037841197,0.25065115,121070.0,121060.0,3.16904355]
[1760037842795,0.25065115,121070.0,121060.0,3.43144355]
[1760037844297,0.25065115,121070.0,121060.0,3.57873027]
[1760037844494,0.00310845,121070.0,121060.0,3.57873027]
[1760037844698,0.25065115,121070.0,121060.0,3.57873027]
[1760037844893,0.25065115,121070.0,121060.0,3.33118757]
[1760037845100,0.25065115,121070.0,121060.0,3.67898625]
[1760037845299,0.00310845,121070.0,121060.0,3.67898625]
[1760037845498,0.25065115,121070.0,121060.0,3.67898625]
[1760037846003,0.00310845,121070.0,121060.0,3.67898625]
[1760037847900,0.00310845,121070.0,121060.0,2.93054625]
[1760037848102,0.00310845,121070.0,121060.0,3.67894625]
[1760037848305,0.00310845,121070.0,121060.0,3.78214667]
[1760037848704,0.00310845,121070.0,121060.0,3.67894625]
[1760037848999,0.00069202,121070.0,121060.0,2.43546085]
[1760037849200,0.00069202,121070.0,121060.0,3.67890625]
[1760037849803,0.00069202,121070.0,121060.0,3.8703802]
[1760037851005,0.005,121090.0,121070.0,0.0825449]
[1760037851206,0.005,121090.0,121080.0,1.2653493]
[1760037851805,0.005,121090.0,121080.0,4.8877458]
[1760037852104,0.006,121090.0,121080.0,5.03502463]
[1760037853310,0.006,121090.0,121080.0,5.03498463]
[1760037853508,0.006,121090.0,121080.0,5.09991447]
[1760037854505,0.006,121090.0,121080.0,2.28983447]
[1760037854709,0.006,121090.0,121080.0,5.09979447]
[1760037854911,0.006,121090.0,121080.0,4.35147447]
[1760037855109,0.006,121090.0,121080.0,5.09975447]
[1760037856010,0.006,121090.0,121080.0,5.22635033]
[1760037857711,0.006,121090.0,121080.0,5.3414715]
[1760037857912,0.006,121090.0,121080.0,5.3414315]
[1760037858318,0.006,121090.0,121080.0,5.4443702]
[1760037858816,0.006,121090.0,121080.0,5.3414315]
[1760037860114,0.006,121090.0,121080.0,5.48871033]
[1760037860617,0.006,121090.0,121080.0,5.22631033]
[1760037860818,0.006,121090.0,121080.0,2.41643033]
[1760037861120,0.006,121090.0,121080.0,5.22615033]
[1760037862317,0.0013544,121090.0,121080.0,5.22615033]
[1760037862512,0.0013544,121090.0,121080.0,2.2691515]
[1760037862710,0.3232771,121090.0,121080.0,3.3312488]
[1760037862909,0.2784571,121090.0,121080.0,3.5787915]
[1760037863115,0.2784571,121090.0,121080.0,5.27026545]
[1760037863319,0.0309144,121090.0,121080.0,5.27026545]
[1760037863724,0.0309144,121090.0,121080.0,2.46062545]
[1760037863924,0.0309144,121090.0,121080.0,5.27022545]
[1760037864224,0.0309144,121090.0,121080.0,5.0787515]
[1760037864619,0.0013544,121090.0,121080.0,5.22569177]
[1760037866516,0.0013544,121090.0,121080.0,5.22565177]
[1760037867027,0.0013544,121090.0,121080.0,5.0787115]
[1760037867921,0.0013544,121090.0,121080.0,5.22565177]
[1760037868625,0.0013544,121090.0,121080.0,5.0787115]
[1760037869526,0.0013544,121090.0,121080.0,5.48805177]
[1760037870132,0.0013544,121090.0,121080.0,5.48801177]
[1760037870333,0.0013544,121090.0,121080.0,4.73993177]
[1760037870533,0.0013544,121090.0,121080.0,5.48801177]
[1760037872733,0.0013544,121090.0,121080.0,2.67849177]
[1760037872931,0.0013544,121090.0,121080.0,5.48793177]
[1760037873227,0.0292844,121090.0,121080.0,2.67849177]
[1760037873426,0.0292844,121090.0,121080.0,5.48793177]
[1760037873627,0.2768271,121090.0,121080.0,5.24038907]
[1760037873828,0.2768271,121090.0,121080.0,2.16854907]
[1760037874030,0.2768271,121090.0,121080.0,4.97798907]
[1760037874333,0.2768271,121090.0,121080.0,4.8310088]
[1760037874821,0.2768271,121090.0,121080.0,0.2740661]
[1760037875021,0.3221871,121090.0,121080.0,3.3310088]
[1760037876534,0.3221871,121090.0,121080.0,3.47805109]
[1760037876936,0.3221871,121090.0,121080.0,2.73001109]
[1760037877236,0.3221871,121090.0,121080.0,3.47805109]
[1760037878833,0.3221871,121090.0,121080.0,3.3310088]
[1760037879537,0.3221871,121090.0,121080.0,3.0834661]
[1760037879838,0.3221871,121090.0,121080.0,3.47805109]
[1760037881039,0.3221871,121090.0,121080.0,3.39547069]
[1760037881337,0.3221871,121090.0,121080.0,0.66865109]
[1760037881533,0.0292844,121090.0,121080.0,3.47801109]
[1760037881733,0.2768271,121090.0,121080.0,3.47801109]
[1760037884537,0.2768271,121090.0,121080.0,3.3309688]
[1760037885340,0.2768271,121090.0,121080.0,3.47801109]
[1760037886937,0.2768271,121090.0,121080.0,3.3309688]
[1760037887743,0.3253471,121090.0,121080.0,3.3309288]
[1760037888642,0.3253471,121090.0,121080.0,0.5216088]
[1760037888835,0.3253471,121090.0,121080.0,3.3309288]
[1760037891239,0.4078807,121090.0,121080.0,2.2528857]
[1760037891543,0.4078807,121090.0,121080.0,2.95658302]
[1760037891544,1.0554234,121090.0,121080.0,2.95658302]
[1760037891745,0.8078807,121090.0,121080.0,2.95658302]
[1760037891943,0.8078807,121090.0,121080.0,0.14730302]
[1760037892141,1.0554234,121090.0,121080.0,1.08674867]
[1760037892338,1.0554234,121090.0,121080.0,1.08669791]
[1760037893342,1.0554234,121090.0,121080.0,0.89517226]
[1760037893945,1.0554234,121090.0,121080.0,0.74792]
[1760037894341,1.0554234,121090.0,121080.0,0.8304604]
[1760037894643,0.560338,121090.0,121080.0,0.8304604]
[1760037894838,1.0554234,121090.0,121080.0,0.8304604]
[1760037895240,1.0554234,121090.0,121080.0,0.74792]
[1760037895547,1.0554234,121090.0,121080.0,0.81294877]
[1760037896243,1.0554234,121090.0,121080.0,0.16798264]
[1760037896443,1.0554234,121090.0,121080.0,0.91590264]
[1760037897449,0.89040633,121090.0,121080.0,0.91590264]
[1760037898047,0.89040633,121090.0,121080.0,0.16798264]
[1760037898346,0.89040633,121090.0,121080.0,0.91590264]
[1760037900547,0.89040633,121090.0,121080.0,0.25052304]
[1760037900753,0.89040633,121090.0,121080.0,0.99848304]
[1760037901652,0.89040633,121090.0,121080.0,0.89552917]
[1760037903053,0.35935273,121090.0,121080.0,0.25051996]
[1760037903251,0.0013544,121090.0,121080.0,1.72854829]
[1760037903457,0.0013544,121090.0,121080.0,1.6255975]
[1760037903757,0.0013544,121090.0,121080.0,1.35495809]
[1760037903959,0.005,121110.0,121090.0,0.082532]
[1760037904157,0.125,121110.0,121100.0,0.82560873]
[1760037904455,0.125,121110.0,121100.0,0.4955404]
[1760037905448,0.127,121110.0,121100.0,1.22560873]
[1760037905653,0.007,121110.0,121100.0,1.22560873]
[1760037907247,0.007,121110.0,121100.0,0.81259513]
[1760037907556,0.007,121110.0,121100.0,1.56051513]
[1760037908153,0.007,121110.0,121100.0,1.75139973]
[1760037909457,0.007,121110.0,121100.0,1.70731447]
[1760037911152,0.007,121110.0,121100.0,1.56051513]
[1760037911862,0.007,121110.0,121100.0,0.4825268]
[1760037912159,0.007,121110.0,121100.0,3.62179513]
[1760037913162,0.007,121110.0,121100.0,0.81259513]
[1760037913349,0.007,121110.0,121100.0,3.62175513]
[1760037914859,0.007,121110.0,121100.0,3.62171513]
[1760037915057,0.007,121110.0,121100.0,0.81259513]
[1760037915265,0.007,121110.0,121100.0,3.62167513]
[1760037919454,0.007,121110.0,121100.0,3.2916068]
[1760037919661,0.007,121110.0,121100.0,3.62167513]
[1760037920365,0.007,121110.0,121100.0,0.81259513]
[1760037920666,0.007,121110.0,121100.0,3.62155513]
[1760037921760,0.007,121110.0,121100.0,3.62151513]
[1760037921962,0.007,121110.0,121100.0,0.81259513]
[1760037922163,0.03484,121110.0,121100.0,3.62147513]
[1760037924575,0.007,121110.0,121100.0,2.87379513]
[1760037925070,0.007,121110.0,121100.0,3.62143513]
[1760037928369,0.007,121110.0,121100.0,3.62343513]
[1760037928669,0.005,121110.0,121100.0,3.62443513]
[1760037934572,0.005,121110.0,121100.0,3.77123447]
[1760037938270,0.005,121110.0,121100.0,3.77111447]
[1760037938471,0.005,121110.0,121100.0,3.62431513]
[1760037940477,0.005,121110.0,121100.0,0.4855268]
[1760037940676,0.005,121110.0,121100.0,2.87667513]
[1760037940876,0.005,121110.0,121100.0,3.2941268]
[1760037941077,0.005,121110.0,121100.0,3.62419513]
[1760037942475,0.005,121110.0,121100.0,3.22419513]
[1760037943674,0.005,121110.0,121100.0,0.41559513]
[1760037943873,0.005,121110.0,121100.0,3.22415513]
[1760037944676,0.005,121110.0,121100.0,0.0855268]
[1760037944872,0.07903,121110.0,121100.0,2.8940868]
[1760037945076,0.03439,121110.0,121100.0,2.8940868]
[1760037945477,0.005,121110.0,121100.0,2.1466068]
[1760037945673,0.005,121110.0,121100.0,2.8940868]
[1760037945875,0.005,121110.0,121100.0,2.1466068]
[1760037946069,0.005,121110.0,121100.0,2.8940868]
[1760037946977,0.005,121110.0,121100.0,3.22415513]
[1760037954679,0.005,121110.0,121100.0,3.37095447]
[1760037956387,0.005,121110.0,121100.0,2.62347447]
[1760037956578,0.005,121110.0,121100.0,3.37087447]
[1760037956982,0.005,121110.0,121100.0,3.04080614]
[1760037959090,0.005,121110.0,121100.0,3.37087447]
[1760037959586,0.25237821,121110.0,121100.0,3.28818435]
[1760037960689,0.25237821,121110.0,121100.0,3.53556256]
[1760037960690,0.005,121110.0,121100.0,3.53556256]
[1760037961184,0.005,121110.0,121100.0,3.38876322]
[1760037961389,0.03284,121130.0,121110.0,0.0825179]
[1760037961690,0.005,121130.0,121120.0,1.32462962]
[1760037962082,0.25237821,121130.0,121120.0,1.22405075]
[1760037962289,0.005,121130.0,121120.0,1.47142896]
[1760037962993,0.006,121130.0,121120.0,0.76841895]
[1760037963390,0.006,121130.0,121120.0,0.52104074]
[1760037963590,0.28116821,121130.0,121120.0,0.27366253]
[1760037963793,0.28116821,121130.0,121120.0,3.08202253]
[1760037963997,0.28116821,121130.0,121120.0,2.8908732]
[1760037964295,0.25337821,121130.0,121120.0,3.13825141]
[1760037964494,0.25337821,121130.0,121120.0,2.39093141]
[1760037964693,0.25337821,121130.0,121120.0,3.13825141]
[1760037965090,0.25337821,121130.0,121120.0,3.28516785]
[1760037966994,0.25337821,121130.0,121120.0,0.47680785]
[1760037967194,0.006,121130.0,121120.0,3.10366]
[1760037967393,0.32692821,121130.0,121120.0,2.35638]
[1760037967699,0.32692821,121130.0,121120.0,3.10366]
[1760037968499,0.30692821,121130.0,121120.0,3.10366]
[1760037969600,0.30692821,121130.0,121120.0,2.2738268]
[1760037969601,1.03681272,121130.0,121120.0,2.2738268]
[1760037969796,1.03681272,121130.0,121120.0,3.0210668]
[1760037970093,1.03681272,121130.0,121120.0,0.2129468]
[1760037970297,1.57419093,121130.0,121120.0,0.52543036]
[1760037970992,1.32681272,121130.0,121120.0,0.52543036]
[1760037971193,1.57419093,121130.0,121120.0,0.52543036]
[1760037971496,1.57419093,121130.0,121120.0,0.06603036]
[1760037971693,0.15607,121110.0,121100.0,0.23439682]
[1760037971899,0.65082642,121110.0,121100.0,2.94987082]
[1760037972198,0.27516821,121110.0,121100.0,2.29527762]
[1760037972498,0.27516821,121110.0,121100.0,3.04247762]
[1760037972892,0.27516821,121110.0,121100.0,3.04347762]
[1760037973092,0.27516821,121110.0,121100.0,2.29627762]
[1760037973390,0.27516821,121110.0,121100.0,3.04351762]
[1760037973893,0.27516821,121110.0,121100.0,3.04551762]
[1760037974496,0.27516821,121110.0,121100.0,2.96299082]
[1760037975300,0.27516821,121110.0,121100.0,2.81607438]
[1760037975592,0.27516821,121110.0,121100.0,2.81615438]
[1760037975593,0.40344821,121110.0,121100.0,2.81615438]
[1760037975998,0.40344821,121110.0,121100.0,2.81515438]
[1760037976701,0.40344821,121110.0,121100.0,2.81315438]
[1760037976900,0.40344821,121110.0,121100.0,2.81415438]
[1760037977600,0.40344821,121110.0,121100.0,2.81315438]
[1760037978600,0.40344821,121110.0,121100.0,3.00430371]
[1760037979302,0.32092821,121110.0,121100.0,3.08683051]
[1760037979504,0.27516821,121110.0,121100.0,3.08683051]
[1760037979903,0.27516821,121110.0,121100.0,2.89668118]
[1760037980503,0.05994471,121110.0,121100.0,2.89668118]
[1760037980897,0.05994471,121110.0,121100.0,2.89568118]
[1760037981702,0.08773471,121110.0,121100.0,2.89568118]
[1760037983099,0.17025471,121110.0,121100.0,2.89568118]
[1760037983502,0.17025471,121110.0,121100.0,3.08679994]
[1760037984704,0.17025471,121110.0,121100.0,2.89568118]
[1760037985703,0.17025471,121110.0,121100.0,3.04269354]
[1760037986098,0.08773471,121110.0,121100.0,3.04269354]
[1760037986904,0.17025471,121110.0,121100.0,2.96016674]
[1760037987205,0.17025471,121110.0,121100.0,3.04269354]
[1760037988303,0.17025471,121110.0,121100.0,2.89568118]
[1760037989706,0.21601471,121110.0,121100.0,2.84603438]
[1760037990108,0.21601471,121110.0,121100.0,2.92856118]
[1760037993807,0.21601471,121110.0,121100.0,0.03775438]
[1760037994008,0.21601471,121110.0,121100.0,2.84603438]
[1760037994408,0.21601471,121110.0,121100.0,2.92856118]
[1760037995209,0.21601471,121110.0,121100.0,2.18136118]
[1760037995404,0.21601471,121110.0,121100.0,2.92856118]
[1760037996509,0.21601471,121110.0,121100.0,2.84603438]
[1760037996810,0.21601471,121110.0,121100.0,2.92856118]
[1760037998911,0.21601471,121110.0,121100.0,2.84603438]
[1760038001512,0.21601471,121110.0,121100.0,2.09883438]
[1760038001711,0.17025471,121110.0,121100.0,2.92852118]
[1760038001912,0.14246471,121110.0,121100.0,2.92852118]
[1760038004212,0.14246471,121110.0,121100.0,2.84599438]
[1760038004411,0.17018471,121110.0,121100.0,2.99300674]
[1760038004913,0.17018471,121110.0,121100.0,3.07553354]
[1760038005113,0.35761821,121110.0,121100.0,3.07553354]
[1760038005308,0.1103034,121120.0,121100.0,3.07549354]
[1760038005507,0.24737821,121110.0,121100.0,3.07549354]
[1760038007012,0.32989821,121110.0,121100.0,3.07549354]
[1760038007509,0.32989821,121110.0,121100.0,2.92848118]
[1760038008512,0.24737821,121110.0,121100.0,2.92848118]
[1760038009114,0.32989821,121110.0,121100.0,2.92848118]
[1760038009509,0.08252,121110.0,121100.0,2.92848118]
[1760038009813,0.24737821,121110.0,121100.0,2.92848118]
[1760038011617,0.35668821,121110.0,121100.0,2.84595438]
[1760038011917,0.35668821,121110.0,121100.0,2.84591438]
[1760038012119,0.40362821,121110.0,121100.0,0.03775438]
[1760038012314,0.40362821,121110.0,121100.0,2.84595438]
[1760038013219,0.40362821,121110.0,121100.0,2.99296674]
[1760038014317,0.40362821,121110.0,121100.0,2.24588674]
[1760038014519,0.40362821,121110.0,121100.0,2.99296674]
[1760038015614,0.15625,121110.0,121100.0,2.99296674]
[1760038015814,0.40362821,121110.0,121100.0,2.99296674]
[1760038018922,0.40362821,121110.0,121100.0,2.84595438]
[1760038019322,0.40362821,121110.0,121100.0,2.09887438]
[1760038019526,0.48615304,121110.0,121100.0,2.84591438]
[1760038020023,0.15625,121110.0,121100.0,2.84591438]
[1760038020223,0.48615304,121110.0,121100.0,2.84591438]
[1760038021024,0.08252,121110.0,121100.0,2.92844118]
[1760038021224,0.43878304,121110.0,121100.0,2.92844118]
[1760038021619,0.43878304,121110.0,121100.0,2.84591438]
[1760038021923,0.15562,121110.0,121100.0,2.84591438]
[1760038022124,0.15562,121110.0,121100.0,0.03775438]
[1760038022326,0.48552304,121110.0,121100.0,2.84591438]
[1760038023018,0.15562,121110.0,121100.0,2.84591438]
[1760038023218,0.48552304,121110.0,121100.0,2.84591438]
[1760038023523,0.15562,121110.0,121100.0,2.84591438]
[1760038023723,0.48552304,121110.0,121100.0,2.84591438]
[1760038024423,0.48552304,121110.0,121100.0,2.99292674]
[1760038024725,0.15562,121110.0,121100.0,2.99292674]
[1760038025025,0.48552304,121110.0,121100.0,2.99292674]
[1760038026928,0.48552304,121110.0,121100.0,3.25528674]
[1760038029325,0.48552304,121110.0,121100.0,3.25628674]
[1760038029628,0.48552304,121110.0,121100.0,2.50928674]
[1760038029827,0.48552304,121110.0,121100.0,3.25628674]
[1760038030230,0.48552304,121110.0,121100.0,3.25728674]
[1760038030830,0.48552304,121110.0,121100.0,3.25628674]
[1760038031125,0.48552304,121110.0,121100.0,2.51128674]
[1760038031329,0.48552304,121110.0,121100.0,3.25828674]
[1760038031530,0.48552304,121110.0,121100.0,3.25728674]
[1760038031731,0.48552304,121110.0,121100.0,2.36231438]
[1760038031927,0.48552304,121110.0,121100.0,0.03875438]
[1760038032126,0.49552304,121110.0,121100.0,0.03875438]
[1760038032326,0.49552304,121110.0,121100.0,0.78471438]
[1760038032729,0.49552304,121110.0,121100.0,0.03775438]
[1760038032931,0.49552304,121110.0,121100.0,0.78471438]
[1760038033129,0.49552304,121110.0,121100.0,0.03775438]
[1760038033336,0.49552304,121110.0,121100.0,0.93186072]
[1760038034936,0.49552304,121110.0,121100.0,0.78471438]
[1760038037336,0.49552304,121110.0,121100.0,0.93186072]
[1760038038140,0.49552304,121110.0,121100.0,0.78471438]
[1760038038838,0.49552304,121110.0,121100.0,1.04711438]
[1760038040940,0.49552304,121110.0,121100.0,0.30015438]
[1760038041137,0.49552304,121110.0,121100.0,1.04711438]
[1760038048146,0.49552304,121110.0,121100.0,1.04707438]
[1760038048644,0.49552304,121110.0,121100.0,0.00495438]
[1760038048846,0.49552304,121110.0,121100.0,0.75187438]
[1760038049242,0.49552304,121110.0,121100.0,0.78379438]
[1760038049740,0.49552304,121110.0,121100.0,0.03687438]
[1760038050044,0.49552304,121110.0,121100.0,0.78379438]
[1760038050246,0.49552304,121110.0,121100.0,0.03687438]
[1760038050446,0.49552304,121110.0,121100.0,0.78375438]
[1760038056054,0.49552304,121110.0,121100.0,0.03687438]
[1760038056241,0.01379,121130.0,121110.0,0.08252]
[1760038056546,0.77115344,121130.0,121120.0,0.8574531]
[1760038056743,0.72620344,121130.0,121120.0,0.8574531]
[1760038057145,0.3,121130.0,121120.0,1.58735614]
[1760038057344,0.001,121130.0,121120.0,0.84051614]
[1760038057545,0.001,121130.0,121120.0,1.73450248]
[1760038057756,0.087493,121150.0,121130.0,0.0825035]
[1760038058053,0.72355604,121150.0,121140.0,1.58942]
[1760038058239,0.285,121150.0,121140.0,1.6719195]
[1760038058445,0.115,121150.0,121140.0,2.4187595]
[1760038058647,0.115,121150.0,121140.0,2.40182254]
[1760038058846,0.115,121150.0,121140.0,3.14866254]
[1760038058847,0.005,121150.0,121140.0,3.14866254]
[1760038059049,0.006,121150.0,121140.0,3.68583587]
[1760038059853,0.006,121150.0,121140.0,3.83240969]
[1760038060448,0.006,121150.0,121140.0,3.68583587]
[1760038060643,0.006,121150.0,121140.0,3.36392886]
[1760038060848,0.006,121150.0,121140.0,0.55604886]
[1760038061046,0.006,121150.0,121140.0,3.6937919]
[1760038061350,0.006,121150.0,121140.0,3.07232797]
[1760038061748,0.006,121150.0,121140.0,3.81908797]
[1760038062152,0.006,121150.0,121140.0,3.96534118]
[1760038062353,0.33490304,121170.0,121150.0,0.0824868]
[1760038062354,0.005,121170.0,121150.0,0.0824868]
[1760038062551,0.005,121170.0,121160.0,0.3292459]
[1760038062747,0.33490304,121170.0,121160.0,0.3292459]
[1760038062956,0.33490304,121170.0,121160.0,0.7292459]
[1760038064053,0.33690304,121170.0,121160.0,0.7292459]
[1760038064448,0.33790304,121170.0,121160.0,0.7292459]
[1760038066656,0.36473304,121170.0,121160.0,3.2899259]
[1760038071560,0.41331304,121170.0,121160.0,3.2895659]
[1760038071761,0.08341,121170.0,121160.0,3.2895659]
[1760038071950,0.41331304,121170.0,121160.0,0.4824859]
[1760038072156,0.49579214,121170.0,121150.0,0.0824884]
[1760038072359,0.35673304,121160.0,121150.0,0.0824884]
[1760038072561,0.35673304,121160.0,121150.0,2.8894884]
[1760038072762,0.35673304,121160.0,121150.0,0.0824884]
[1760038072962,0.35673304,121160.0,121150.0,2.8894884]
[1760038073262,0.35673304,121160.0,121150.0,0.0824884]
[1760038073465,0.35773304,121160.0,121150.0,2.8894884]
[1760038074367,0.33090304,121160.0,121150.0,2.8894884]
[1760038075466,0.33090304,121160.0,121150.0,0.0824884]
[1760038075661,0.33090304,121160.0,121150.0,2.8893684]
[1760038076862,0.33090304,121160.0,121150.0,2.8893284]
[1760038077065,0.001,121160.0,121150.0,2.8893284]
[1760038079568,0.44421244,121170.0,121160.0,0.0824859]
[1760038079765,0.49279244,121170.0,121160.0,0.0824859]
[1760038080267,0.36173304,121170.0,121160.0,0.0824859]
[1760038080464,0.005,121170.0,121160.0,0.0824859]
[1760038080770,0.44360454,121170.0,121160.0,0.74944]
[1760038081571,0.36086667,121170.0,121160.0,0.74944]
[1760038081868,1.05492184,121170.0,121160.0,0.003]
[1760038082073,1.05492184,121170.0,121160.0,0.22904]
[1760038082368,1.35492184,121170.0,121160.0,0.7494]
[1760038082573,1.35492184,121170.0,121160.0,0.002]
[1760038082767,1.35492184,121170.0,121160.0,0.7484]
[1760038082966,1.09492184,121170.0,121160.0,0.7484]
[1760038083167,1.05492184,121170.0,121160.0,0.7484]